Cogmind - Beta 15 @@@ ROGUE MODE // 2025.06.04 @ 17:59:13 Player: Mas5akr Result: Destroyed by G-47 Trooper with Particle Gun Performance ------------- Evolutions (3) 1500 Regions Visited (8) 1600 Robots Destroyed (76) 380 Value Destroyed (2303) 2303 Prototype IDs (27) 540 Alien Tech Used (0) 0 Bonus (411) 411 TOTAL SCORE: 6734 Bonus ------- High Alert Combat Kills 37 Follower Combat Kills 74 Aligned with FarCom 300 Cogmind --------- Core Integrity 0/700 Matter 285/300 Energy 1390/1600 System Corruption 1% Temperature Cool (24) Movement Core (300) Ox5 Location -7/Lower Caves Parts ------- > --- POWER (1) -------- (None) > --- PROPULSION (3) --- (None) > --- UTILITY (7) ------ Small Storage Unit Superbattery Improved Signal Interpreter Hacking Suite System Shield > --- WEAPON (2) ------- Proton Missile Launcher Katana > --- INVENTORY (8) ---- Light Nuclear Core Light Nuclear Core Transmission Jammer Hacking Suite Remote Datajack Chainsword Peak State ------------ > --- POWER ------------ Micro Nuclear Core > --- PROPULSION ------- Aluminum Leg Carbon-fiber Leg Improved Cesium-ion Thruster > --- UTILITY ---------- Small Storage Unit Improved Signal Interpreter Utility Shielding Layered Light Armor Plating Hacking Suite Hacking Suite System Shield > --- WEAPON ----------- Heavy Particle Cannon Plasma Cannon > --- INVENTORY -------- Light Nuclear Core Superbattery Melee Analysis Suite Transmission Jammer Proton Missile Launcher Proton Missile Launcher Remote Datajack Chainsword [Rating: 41] Favorites ----------- Power Micro Nuclear Core Engine Ion Engine Power Core Micro Nuclear Core Propulsion Aluminum Leg Treads Light Treads Leg Aluminum Leg Flight Unit Improved Cesium-ion Thruster Utility Hacking Suite Device Transmission Jammer Storage Small Storage Unit Processor Improved Signal Interpreter Hackware Hacking Suite Protection Utility Shielding Weapon Plasma Cannon Energy Gun Medium Laser Energy Cannon Plasma Cannon Ballistic Gun Light Assault Rifle Ballistic Cannon Assault Cannon Launcher Grenade Launcher Slashing Weapon Katana Piercing Weapon Spear Build | -11 -10 -10 -10 -9 -8 -7 -7 -7 ------- Run | Yrd Mat Min Exi Min Mat Fac Low Low Slots Evolved 6 | . . . . . 4 2 . . Power . | . . . . . . . . . Propulsion 1 | . . . . . 1 . . . Utility 5 | . . . . . 3 2 . . Weapon . | . . . . . . . . . Parts Attached 65 | 7 . 5 1 1 27 20 2 2 Power 8 | 1 . 2 . . 3 2 . . Engine 4 | 1 . 2 . . 1 . . . Core 4 | . . . . . 2 2 . . Reactor . | . . . . . . . . . Propulsion 17 | 2 . 2 . . 6 7 . . Treads 2 | 2 . . . . . . . . Leg 14 | . . 2 . . 6 6 . . Wheel . | . . . . . . . . . Hover . | . . . . . . . . . Flight 1 | . . . . . . 1 . . Utility 19 | 1 . . 1 1 9 6 1 . Device 1 | . . . . . 1 . . . Storage 4 | 1 . . 1 . 2 . . . Processor 2 | . . . . . 1 1 . . Hackware 4 | . . . . . 1 3 . . Protection 8 | . . . . 1 4 2 1 . Artifact . | . . . . . . . . . Weapon 21 | 3 . 1 . . 9 5 1 2 Energy Gun 4 | 1 . . . . 3 . . . Energy Cannon 4 | . . . . . 2 2 . . Ballistic Gun 4 | 2 . . . . . 2 . . Ballistic Cannon 1 | . . . . . 1 . . . Launcher 6 | . . 1 . . 3 . 1 1 Special Weapon . | . . . . . . . . . Impact Weapon . | . . . . . . . . . Slashing Weapon 1 | . . . . . . . . 1 Piercing Weapon 1 | . . . . . . 1 . . Special Melee Weapon . | . . . . . . . . . Unidentified Prototypes 4 | . . . . . 2 2 . . Corrupted Parts 2 | . . . . . 2 . . . System Corruption 2 | . . . . . 2 . . . Parts Lost 25 | . . 4 . . 9 4 6 2 Power 3 | . . 1 . . 1 . 1 . Propulsion 10 | . . 1 . . 3 3 3 . Utility 5 | . . . . . 2 . 1 2 Weapon 7 | . . 2 . . 3 1 1 . Highest Loss Streak 6 | . . 4 . . 6 3 4 2 To Critical Strikes 1 | . . 1 . . . . . . Average Backups 7 | 2 2 2 1 4 9 8 7 7 Power . | . 1 . . . . 1 1 2 Propulsion . | . . . . . . . . . Utility 3 | . . . 1 3 5 4 3 3 Weapon 2 | 1 1 . . . 3 2 2 1 Tool/Special . | . . . . . . . . . Unused Backups 14 | . . . . . 4 5 . 5 Power 3 | . . . . . 1 . . 2 Propulsion 1 | . . . . . 1 . . . Utility 5 | . . . . . . 4 . 1 Weapon 4 | . . . . . 2 1 . 1 Tool/Special 1 | . . . . . . . . 1 Average Slot Usage (%) 90 | . 85 83 85 90 88 97 86 52 Engine 3 | . 14 13 14 14 6 . . . Core 4 | . . . . . . 7 6 . Treads 1 | . 28 9 . . . . . . Leg 19 | . . 17 28 28 24 22 10 . Storage 10 | . 14 14 14 14 12 9 7 7 Processor 7 | . . . . . 8 9 7 7 Hackware 12 | . . . . . . 18 29 22 Protection 10 | . . . . 5 18 12 7 7 Energy Gun 1 | . 14 4 . . 3 . . . Energy Cannon 4 | . . . . . 4 7 2 . Ballistic Gun 4 | . 14 14 14 14 . 3 . . Launcher 3 | . . 8 14 14 5 . 4 . Piercing Weapon 2 | . . . . . . 2 7 1 Peak Build Rating 41 | 6 6 6 8 8 29 41 38 29 Average Rating 24 | 4 6 5 6 7 18 33 35 20 On Entrance 12 | . 6 6 6 7 8 23 38 21 Naked Turns . | . . . . . . . . . Heaviest Build 40 | 12 12 14 19 20 35 40 21 8 Greatest Support 42 | 40 40 40 20 20 37 42 42 3 Greatest Overweight (x) 3 | 2 . . . . 1 3 2 2 Average Overweight (x) . | . . . . . . . . 2 Largest Inventory Capacity 10 | 8 8 8 10 10 10 10 8 8 Average Capacity 8 | 7 8 8 8 10 10 8 8 8 Most Carried 10 | 6 3 5 3 6 10 10 8 8 Average Carried 7 | 2 2 2 1 4 9 8 7 7 Final Capacity 10 | 8 8 8 10 10 10 8 8 8 Final Carried 10 | 2 3 1 3 6 10 8 8 6 Class Distribution -------------------- 36% | Hacker-Mutant 32% | Mutant 31% | Scavenger-Mutant Dominant Class ---------------- Mutant | -10/Materials Mutant | -10/Mines Mutant | -10/Exiles Mutant | -9/Mines Mutant | -8/Materials Scavenger-Mutant | -7/Factory Hacker-Mutant | -7/Lower Caves Hacker-Mutant | -7/Lower Caves Resources | -11 -10 -10 -10 -9 -8 -7 -7 -7 ----------- Run | Yrd Mat Min Exi Min Mat Fac Low Low Matter Collected 1681 | 208 24 254 . 59 662 405 40 29 Remotely . | . . . . . . . . . Salvage Created 2500 | . 24 307 . 19 963 974 114 99 Parts 166 | . 2 23 . 3 58 72 5 3 Haulers Intercepted 4 | . . . . . 2 2 . . Recyclers Shooed 4 | . . . . . 1 3 . . Parts Field Recycled . | . . . . . . . . . Retrieved Matter . | . . . . . . . . . Parts Self-Destructed 5 | . . . . . . . 2 3 Prevented 1 | . . . . . . . 1 . Kills | -11 -10 -10 -10 -9 -8 -7 -7 -7 ------- Run | Yrd Mat Min Exi Min Mat Fac Low Low Combat Hostiles Destroyed 55 | . . 15 . 3 20 12 3 2 Melee 6 | . . . . . . 3 1 2 Guns 12 | . . 10 . . 1 1 . . Cannons 13 | . . . . . 5 8 . . AOE 21 | . . 5 . 3 11 . 2 . Classes Destroyed 12 | . 1 3 . 1 5 2 . . Worker 5 | . . . . 1 3 1 . . Builder 2 | . . 1 . . . 1 . . Hauler 4 | . . . . . 2 2 . . Recycler 3 | . . . . . 1 2 . . Operator 4 | . . . . . 2 2 . . Watcher 3 | . 1 . . . 1 1 . . Swarmer 23 | . . 11 . 3 5 . 3 1 Grunt 17 | . . 4 . . 10 3 . . Sentry 7 | . . . . . 3 3 . 1 Specialist 2 | . . . . . 2 . . . Hunter 1 | . . . . . . 1 . . Programmer 5 | . . . . . . 5 . . Decomposer 1 | . . . . . . . 1 . Best Kill Streak 5 | . 1 5 . 4 5 5 3 2 Combat Bots Only 5 | . . 5 . 3 3 2 3 2 Max Kills in Single Turn 3 | . 1 2 . 2 3 2 2 1 Gunslinging 1 | . . 1 . . . . . . Exploded 3 | . . 1 . 2 3 . 2 . Melee 1 | . . . . . . 1 1 1 Uniques/NPCs Destroyed . | . . . . . . . . . Combat | -11 -10 -10 -10 -9 -8 -7 -7 -7 -------- Run | Yrd Mat Min Exi Min Mat Fac Low Low Hostile Shots Fired 605 | . 21 70 . 3 167 216 101 27 Missed 208 | . 7 12 . 2 67 77 33 10 Hits 397 | . 14 58 . 1 100 139 68 17 Projectile 397 | . 14 58 . 1 100 139 68 17 Critical Strikes 9 | . . 1 . . 5 2 . 1 Actively Blocked 1 | . . . . . 1 . . . Damage Taken 4664 | . 172 601 . 8 1496 1297 794 296 Core 1064 | . 26 102 . . 230 206 279 221 Absorbed by Shields . | . . . . . . . . . Redirected to Shielding 93 | . . . . . 43 20 12 18 Core Remaining (%) 68 | 100 . . . 48 58 . . . Volleys Fired 186 | . 6 42 . 2 77 51 5 3 Largest 2 | . 2 2 . 2 2 2 1 1 Hottest 155 | . 70 70 . 50 136 155 39 39 Shots Fired 330 | . 12 80 . 4 127 98 6 3 Gun 155 | . 12 70 . 2 22 49 . . Cannon 100 | . . . . . 51 49 . . Launcher 75 | . . 10 . 2 54 . 6 3 Special . | . . . . . . . . . Kinetic 106 | . 6 41 . 2 8 49 . . Thermal 144 | . 6 29 . . 60 49 . . Explosive 37 | . . 10 . 2 25 . . . Electromagnetic 43 | . . . . . 34 . 6 3 Robot Hit Streak 15 | . 2 8 . 1 11 15 3 . Robot Miss Streak 7 | . 2 7 . 5 5 5 . . Penetration Max 1 | . . . . . . 1 . . Secondary Targets 1 | . . 1 . . . . . . Max Gunslinging Chain 1 | . . 1 . . . . . . Shots Hit Robots 188 | . 5 43 . 2 64 65 5 4 Core Hits 124 | . 1 23 . 3 53 32 6 6 Critical Kills 2 | . . . . . 2 . . . Critical Parts Destroyed . | . . . . . . . . . Critical Strikes 6 | . . 3 . . 2 . . 1 Burn 3 | . . 3 . . . . . . Meltdown 2 | . . . . . 2 . . . Sever 1 | . . . . . . . . 1 Melee Attacks 21 | . . . . . . 14 3 4 Impact . | . . . . . . . . . Slashing 4 | . . . . . . . . 4 Piercing 17 | . . . . . . 14 3 . Sneak Attacks . | . . . . . . . . . Combat Hostiles . | . . . . . . . . . Follow-up Attacks . | . . . . . . . . . Damage Inflicted 6002 | . 60 945 . 215 2697 1587 228 270 Guns 1410 | . 60 507 . . 308 535 . . Cannons 1554 | . . . . . 750 804 . . Explosions 2592 | . . 422 . 215 1639 . 172 144 Melee 426 | . . . . . . 244 56 126 Ramming 20 | . . 16 . . . 4 . . Kinetic 894 | . 21 270 . . 68 535 . . Thermal 2064 | . 39 237 . . 984 804 . . Explosive 1597 | . . 422 . 215 960 . . . Electromagnetic 1001 | . . . . . 685 . 172 144 Impact . | . . . . . . . . . Slashing 126 | . . . . . . . . 126 Piercing 300 | . . . . . . 244 56 . Highest Corruption 2 | . . . . . 2 1 1 1 Average Corruption 1 | . . . . . 1 1 1 1 Corruption Purged . | . . . . . . . . . Corruption Blocked . | . . . . . . . . . Effects 16 | . . . . . 3 7 5 1 Message Errors 4 | . . . . . . 3 1 . Matter Fused 5 | . . . . . 2 2 . 1 Heat Flow Errors 3 | . . . . . . . 3 . Energy Discharges 1 | . . . . . . 1 . . Data Loss (minor) 1 | . . . . . 1 . . . Data Loss (major) 1 | . . . . . . 1 . . Misfires 1 | . . . . . . . 1 . Overload Shots . | . . . . . . . . . Overflow Damage 158 | . . 60 . 38 34 14 . 12 Projectiles 14 | . . . . . . 14 . . Explosions 132 | . . 60 . 38 34 . . . Melee 12 | . . . . . . . . 12 Knockbacks 2 | . . . . . . 2 . . Impact 1 | . . . . . . 1 . . Kinetic . | . . . . . . . . . Secondary 1 | . . . . . . 1 . . Self-Inflicted Damage 192 | . . 29 . . 144 . 12 7 Shots 12 | . . 2 . . 8 . 1 1 Rammed 3 | . . 3 . . . . . . Targets Rammed 7 | . . 5 . . . 2 . . Kicked 4 | . . 2 . . . 2 . . Crushed . | . . . . . . . . . Highest Temperature 449 | . 39 189 . 20 449 313 249 21 Average Temperature 90 | . 14 57 . 12 102 104 94 18 Received Heat Transfer 1293 | . 96 153 . . 522 255 150 117 Effects 8 | . . . . . 6 2 . . Shutdowns 1 | . . . . . 1 . . . Energy Bleed 2 | . . . . . 1 1 . . Interference 1 | . . . . . . 1 . . Damage (minor) 1 | . . . . . 1 . . . Damage (major) 3 | . . . . . 3 . . . Siege Activations . | . . . . . . . . . Martial Activations . | . . . . . . . . . Shielding Activations . | . . . . . . . . . Robots Disrupted . | . . . . . . . . . Combat Hostiles . | . . . . . . . . . Robots Corrupted 1 | . . . . . 1 . . . Combat Hostiles 1 | . . . . . 1 . . . Parts Fried 1 | . . . . . 1 . . . Impact Corruptions . | . . . . . . . . . Robots Melted 2 | . . . . . 2 . . . Combat Hostiles 2 | . . . . . 2 . . . Parts Melted 11 | . . 3 . . 4 4 . . Heat Transferred 4539 | . 111 925 . . 2018 1485 . . Parts Sabotaged . | . . . . . . . . . Parts Stolen . | . . . . . . . . . Parts Stripped . | . . . . . . . . . Power Chain Reactions 4 | . . . . . 4 . . . Alert | -11 -10 -10 -10 -9 -8 -7 -7 -7 ------- Run | Yrd Mat Min Exi Min Mat Fac Low Low Maximum Alert Level 2 | . . 1 . . 2 1 . . Low Security (%) 80 | 100 100 59 . 100 52 95 . . Level 1 14 | . . 40 . . 27 4 . . Level 2 4 | . . . . . 19 . . . Level 3 . | . . . . . . . . . Level 4 . | . . . . . . . . . Level 5 . | . . . . . . . . . High Security . | . . . . . . . . . Max Security . | . . . . . . . . . Peak Influence 588 | . 7 297 . 110 588 258 . . Initial 258 | . . . . . 39 258 . . Average 97 | . . 163 . 17 213 43 . . Influence Increases 2383 | . 7 487 . 110 1059 580 100 40 Destroy 0b10 Robot/C 1140 | . . 300 . 60 440 240 60 40 Destroy 0b10 Robot/NC 105 | . 5 5 . 5 45 45 . . Destroy Leader 314 | . 2 50 . 10 126 116 10 . Allied During Kill 13 | . . . . 7 6 . . . Successful Hack 90 | . . . . . 5 85 . . Disable Machine 180 | . . 30 . 15 120 15 . . Anti-Garrison Action 150 | . . . . . 150 . . . Destroy Structure 226 | . . 57 . 13 152 4 . . Lose Combat Pursuer 165 | . . 45 . . 15 75 30 . Influence Decreases 2363 | . 7 342 145 10 590 1083 166 20 Entered New Map 542 | . . . 145 . 61 311 25 . Time Decay 1369 | . 7 302 . 10 439 469 132 10 Lost Part 181 | . . 40 . . 90 32 9 10 Lost Ally 10 | . . . . . . 10 . . Purge Threat 261 | . . . . . . 261 . . Squads Dispatched 22 | . 1 . . . 12 8 . 1 Investigation 4 | . . . . . 3 1 . . Extermination 5 | . . . . . . 5 . . Reinforcement 7 | . 1 . . . 4 2 . . Assault 3 | . . . . . 2 . . 1 Garrison 3 | . . . . . 3 . . . Intercept . | . . . . . . . . . Searches Triggered . | . . . . . . . . . Construction Impeded 1 | . . . . . 1 . . . Haulers Reinforced . | . . . . . . . . . Active Scanning Responses . | . . . . . . . . . Cargo Convoy Interrupts . | . . . . . . . . . Stealth | -11 -10 -10 -10 -9 -8 -7 -7 -7 --------- Run | Yrd Mat Min Exi Min Mat Fac Low Low Distress Signals 5 | . 1 . . . 1 3 . . Communications Jammed . | . . . . . . . . . Distress Signals . | . . . . . . . . . Times Spotted 109 | . 5 18 . 3 32 36 6 9 Peak Tracking Total 12 | . 5 6 . 3 4 6 4 12 Tactical Retreats 8 | . . 1 . . 1 4 2 . Traps | -11 -10 -10 -10 -9 -8 -7 -7 -7 ------- Run | Yrd Mat Min Exi Min Mat Fac Low Low Traps Triggered 4 | . . . . . 3 1 . . Indirectly 1 | . . . . . 1 . . . Trap Hack Attempts . | . . . . . . . . . Triggered . | . . . . . . . . . Disarmed . | . . . . . . . . . Reprogrammed . | . . . . . . . . . Reused . | . . . . . . . . . Traps Extracted . | . . . . . . . . . Installed . | . . . . . . . . . Triggered . | . . . . . . . . . Machines | -11 -10 -10 -10 -9 -8 -7 -7 -7 ---------- Run | Yrd Mat Min Exi Min Mat Fac Low Low Machines Disabled 13 | . . 2 . 1 9 1 . . Max in Single Turn 3 | . . 2 . 1 3 1 . . Garrison Access 1 | . . . . . 1 . . . Machines Repaired . | . . . . . . . . . Machines Dismantled . | . . . . . . . . . Machines Sabotaged . | . . . . . . . . . Overloaded Fab Kills . | . . . . . . . . . Hacking | -11 -10 -10 -10 -9 -8 -7 -7 -7 --------- Run | Yrd Mat Min Exi Min Mat Fac Low Low Machines Accessed 17 | . . . 2 . 4 11 . . Terminals 7 | . . . . . 3 4 . . Fabricators 2 | . . . . . . 2 . . Repair Stations 2 | . . . . . . 2 . . Recycling Units 1 | . . . . . . 1 . . Scanalyzers 2 | . . . . . . 2 . . Garrison Access 1 | . . . . . 1 . . . Total Hacks 50 | . . . 8 . 15 27 . . Successful 28 | . . . 8 . 4 16 . . Failed 22 | . . . . . 11 11 . . Catastrophic 7 | . . . . . 2 5 . . Database Lockouts . | . . . . . . . . . Manual 18 | . . . 1 . 7 10 . . Terminals 22 | . . . . . 11 11 . . Fabricators 6 | . . . . . . 6 . . Repair Stations 4 | . . . . . . 4 . . Recycling Units 1 | . . . . . . 1 . . Scanalyzers 5 | . . . . . . 5 . . Garrison Access 4 | . . . . . 4 . . . Terminal Hacks 14 | . . . 8 . 2 4 . . Record 7 | . . . 7 . . . . . Terminal Index 2 | . . . . . 1 1 . . Alert Level 1 | . . . . . . 1 . . Unreport Threat 2 | . . . . . . 2 . . Zone Layout 1 | . . . . . 1 . . . Proto ID Catalog 1 | . . . 1 . . . . . Fabricator Hacks 4 | . . . . . . 4 . . Network Status 1 | . . . . . . 1 . . Load Schematic 1 | . . . . . . 1 . . Build 2 | . . . . . . 2 . . Repair Station Hacks 2 | . . . . . . 2 . . Scan Component 2 | . . . . . . 2 . . Recycling Unit Hacks 1 | . . . . . . 1 . . Report Inventory 1 | . . . . . . 1 . . Scanalyzer 3 | . . . . . . 3 . . Insert Component 2 | . . . . . . 2 . . Analyze 1 | . . . . . . 1 . . Garrison Access Hacks . | . . . . . . . . . Unauthorized Hacks 4 | . . . . . 2 2 . . Terminals 4 | . . . . . 2 2 . . Botnet 2 | . . . . . 1 1 . . Operators 2 | . . . . . 1 1 . . Fabricators . | . . . . . . . . . Repair Stations . | . . . . . . . . . Recycling Units . | . . . . . . . . . Scanalyzers . | . . . . . . . . . Garrison Access . | . . . . . . . . . Data Cores Recovered . | . . . . . . . . . Used . | . . . . . . . . . Hacking Detections 14 | . . . . . 4 10 . . Full Trace Events 1 | . . . . . . 1 . . Feedback Events . | . . . . . . . . . Feedback Blocked . | . . . . . . . . . Robot Schematics Acquired . | . . . . . . . . . Robots Built 4 | . . . . . . 4 . . Authchips . | . . . . . . . . . Time 40 | . . . . . . 40 . . Total Robot Build Rating 4 | . . . . . . 4 . . Part Schematics Acquired 1 | . . . . . . 1 . . Parts Built 1 | . . . . . . 1 . . Authchips . | . . . . . . . . . Time 36 | . . . . . . 36 . . Total Part Build Rating 3 | . . . . . . 3 . . Parts Repaired . | . . . . . . . . . Time . | . . . . . . . . . Parts Recycled . | . . . . . . . . . Recycled Matter . | . . . . . . . . . Retrieved Matter . | . . . . . . . . . Retrieved Components . | . . . . . . . . . Parts Scanalyzed 2 | . . . . . . 2 . . Part Schematics Acquired 1 | . . . . . . 1 . . Parts Damaged . | . . . . . . . . . Bothacking | -11 -10 -10 -10 -9 -8 -7 -7 -7 ------------ Run | Yrd Mat Min Exi Min Mat Fac Low Low Used RIF Installer . | . . . . . . . . . Robots Hacked . | . . . . . . . . . Non-combat . | . . . . . . . . . Combat . | . . . . . . . . . Robot Hacks Applied . | . . . . . . . . . Relay Couplers Released 2 | . . . . . 2 . . . Machine Destruction 2 | . . . . . 2 . . . Fabnet Peak Effective % . | . . . . . . . . . Robots Rewired . | . . . . . . . . . Allies Hacked . | . . . . . . . . . Hacks Repelled . | . . . . . . . . . Allies | -11 -10 -10 -10 -9 -8 -7 -7 -7 -------- Run | Yrd Mat Min Exi Min Mat Fac Low Low Total Allies 7 | . . 3 . . . 4 . . Largest Group 4 | . . 3 2 2 2 4 . . Highest-Rated Group 40 | . . 40 24 24 24 24 . . Highest-Rated Ally 16 | . . 16 16 16 16 6 . . Total Orders . | . . . . . . . . . Ally Attacks 17 | . . . . . 17 . . . Total Damage 142 | . . . . . 142 . . . Kills 2 | . . . . . 2 . . . Allies Corrupted . | . . . . . . . . . Allies Melted . | . . . . . . . . . Intel | -11 -10 -10 -10 -9 -8 -7 -7 -7 ------- Run | Yrd Mat Min Exi Min Mat Fac Low Low Active Infowar (turns) 1 | . . . . . 1 . . . Jamming 1 | . . . . . 1 . . . Robot Analysis Total . | . . . . . . . . . Derelict Logs Recovered 1 | . . . . . . . 1 . Drone Launches . | . . . . . . . . . Drone Recoveries . | . . . . . . . . . Exploration | -11 -10 -10 -10 -9 -8 -7 -7 -7 ------------- Run | Yrd Mat Min Exi Min Mat Fac Low Low Turns Passed 6815 | 78 159 671 300 174 1328 3018 851 236 Spaces Moved 3930 | 55 88 418 248 131 742 1623 487 138 Core 168 | 26 . . . . . . 4 138 Treads 202 | 29 88 85 . . . . . . Legs 3560 | . . 333 248 131 742 1623 483 . Wheels . | . . . . . . . . . Hover . | . . . . . . . . . Flight . | . . . . . . . . . Fastest Speed 50 | 50 160 120 120 120 120 120 123 150 Average Speed 146 | 117 160 128 120 120 137 156 165 150 Slowest Speed 330 | 160 160 160 120 120 200 330 200 150 Overloaded Moves . | . . . . . . . . . Propulsion Burnouts . | . . . . . . . . . Robots Hopped . | . . . . . . . . . Potential Cave-ins . | . . . . . . . . . Cave-ins Triggered . | . . . . . . . . . Exploration Rate (%) 41 | 4 22 73 62 37 45 36 76 16 Regions Visited 8 Branch Regions 5 Pre-discovered Areas 1 | . . . 1 . . . . . Known Exits Taken 2 | . . . . . . 1 1 . Unknown Exits Taken 6 | 1 1 1 1 1 1 . . . Scrap Searched 6 | . . 1 . 2 . . 2 1 Spaces Dug 4 | . . . . . . 3 1 . Terrain Destroyed 283 | . . 68 . 19 192 3 1 . Melee 4 | . . . . . . 3 1 . Projectile 14 | . . . . . 14 . . . AOE 265 | . . 68 . 19 178 . . . Terrain Rammed . | . . . . . . . . . Walls Destroyed . | . . . . . . . . . Machines Disabled . | . . . . . . . . . Actions | -11 -10 -10 -10 -9 -8 -7 -7 -7 --------- Run | Yrd Mat Min Exi Min Mat Fac Low Low Total 4628 | 67 94 476 251 144 927 1989 522 158 Wait 321 | . . . . 7 32 250 23 9 Move 3922 | 54 87 417 247 130 741 1622 486 138 Hop . | . . . . . . . . . Pick Up 52 | 6 1 4 2 4 25 9 1 . Fast Attach 26 | 2 . . . . 9 14 . 1 Attach 32 | 4 . 5 1 1 14 4 1 2 Detach 3 | . . . 1 . 2 . . . Swap 14 | 1 . 1 . . 8 3 1 . Drop 44 | . . 2 . . 19 20 2 1 Fire 186 | . 6 42 . 2 77 51 5 3 Melee 21 | . . . . . . 14 3 4 Ram . | . . . . . . . . . Kick 4 | . . 2 . . . 2 . . Crush 3 | . . 3 . . . . . . Escape Stasis . | . . . . . . . . . Rewire . | . . . . . . . . . Trap . | . . . . . . . . . Miscellaneous . | . . . . . . . . . Route ------- -11/Scrapyard -10/Materials -10/Mines (discovered 3 exits: [*Mat] / *Exi / [*Sub]) -10/Exiles -9/Mines -8/Materials -7/Factory (discovered 3 exits: *Fac / *Low x2) -7/Lower Caves (discovered 2 exits: *Low / *Zio) -7/Lower Caves (discovered 1 exit: *Fac) History --------- Turn | Location | Event 7 | -11/Scrapyard | Discovered new exit (range 14) 79 | -11/Scrapyard | Entered Materials 205 | -10/Materials | Discovered new exit (range 15) 238 | -10/Materials | Entered Mines 313 | -10/Mines | Build established: Mutant 491 | -10/Mines | Core integrity fell below 50% 497 | -10/Mines | Lost 4 parts (1p1n2w) 631 | -10/Mines | Assisted by bots powering up and referring to "LRC-V3" 799 | -10/Mines | Discovered new exit (range 8) 877 | -10/Mines | Discovered new exit (range 9) 905 | -10/Mines | Deemed a non-threat by the Exiles lab entrance 905 | -10/Mines | Discovered new exit (range 5) 909 | -10/Mines | Entered Exiles 909 | -10/Exiles | Accompanied by 2 allies 939 | -10/Exiles | Met 8R-AWN 960 | -10/Exiles | Met EX-HEX 997 | -10/Exiles | Met EX-BIN 1011 | -10/Exiles | Aligned with FarCom system 1013 | -10/Exiles | Given EX-Vault access code 1043 | -10/Exiles | Opened EX-Vault 1050 | -10/Exiles | Found Superbattery 1075 | -10/Exiles | Warned to stay clear of 0b10 Research branches 1114 | -10/Exiles | Met EX-DEC 1129 | -10/Exiles | Learned location of Zion (-6) 1192 | -10/Exiles | Discovered new exit (range 14) 1209 | -10/Exiles | Left Exiles lab with Superbattery 1209 | -10/Exiles | Entered Mines 1209 | -9/Mines | Accompanied by 2 allies 1273 | -9/Mines | YI-UF0 nonchalantly dropped a Grenade Launcher on the ground 1368 | -9/Mines | Discovered new exit (range 10) 1383 | -9/Mines | Entered Materials 1383 | -8/Materials | Accompanied by 2 allies 1383 | -8/Materials | Evolved 4 slots: Propulsion x1, Utility x3 1797 | -8/Materials | Build established: Scavenger-Mutant 2155 | -8/Materials | Build established: Mutant 2243 | -8/Materials | Garrison activated, responded to threat 2313 | -8/Materials | Lost 6 parts (2n1u3w) 2556 | -8/Materials | Discovered new exit (range 12) 2711 | -8/Materials | Entered Factory 2711 | -7/Factory | Evolved 2 slots: Utility x2 3103 | -7/Factory | Discovered new exit (range 13) 3217 | -7/Factory | Build established: Scavenger-Mutant 4292 | -7/Factory | Lost 3 parts (2n1w) 4407 | -7/Factory | Allied Derelicts emerged from ambush trap array 4451 | -7/Factory | Fabricated K-01 Serf (x4) 4650 | -7/Factory | Discovered new exit (range 8) 4799 | -7/Factory | Build established: Hacker-Mutant 4800 | -7/Factory | Discovered new exit (range 14) 4819 | -7/Factory | Identified exit to Lower Caves 5557 | -7/Factory | Fabricated Hacking Suite (x1) 5729 | -7/Factory | Entered Lower Caves 5733 | -7/Lower Caves | Identified exit to Lower Caves 5804 | -7/Lower Caves | A Derelict revealed a hidden shortcut to a safe place 5807 | -7/Lower Caves | Identified exit to Zion 5840 | -7/Lower Caves | Spotted B-75 Beast 5972 | -7/Lower Caves | Core integrity fell below 50% 6158 | -7/Lower Caves | Encountered a Warlord checkpoint 6540 | -7/Lower Caves | Attracted the attention of an 0b10 checkpoint 6580 | -7/Lower Caves | Entered another Lower Caves area 6605 | -7/Lower Caves | Lost 4 parts (1p1n1u1w) 6618 | -7/Lower Caves | Encountered a Warlord checkpoint 6673 | -7/Lower Caves | Discovered new exit (range 3) 6682 | -7/Lower Caves | Identified exit to Factory 6781 | -7/Lower Caves | Attracted the attention of an 0b10 outpost 6804 | -7/Lower Caves | Core integrity fell below 20% 6816 | -7/Lower Caves | Destroyed by G-47 Trooper with Particle Gun Last Messages --------------- Destroyed VTOL Module. S-27 Virus destroyed. Y-64 Sentinel Imp. Treads severed. Penetrated by Slug. Y-64 Sentinel destroyed. Acquired 14 matter. C-30 ARC bursts open, deploying its payload. G-50 Soldier unfolds itself. G-47 Trooper unfolds itself. I-36 Angel unfolds itself. Acquired 10 matter. Acquired 5 matter. Corrupted Wave Gun fries itself beyond repair. Utility Shielding destroyed. Critical hit (Burn: +37). Corrupted Adv. Heat Sink fries itself beyond repair. Imp. Medium Armor Plating fries itself beyond repair. G-50 Soldier misfires. Map ----- +----------------------------------------------------+ | ?????????????????????????????????????# ? ????? | | ?????????????????????????????????????# ?# #????? | | ?????????????????????????????????????# ## #????# | | ?????????????????????????????????????# #????# | | ?????????????????????????????????????# ##???# | | ????????????????????????????????????## ###?# | | ????????????????????????????????????# #?# | | ????????????????????????????????????# ### | | ????????????????????????????????????# % | | ??????????????????????????? ???????# ##/ | | ???????????????? ?????### #??????## #### ## | | ??????????????# ????? #???????#### #### #? | | ??????????????# ???? #????????### #? | | ??????????????? ????? #???###### ####### | | ??????????????? ????? #???# ## #####?# | | ??????????????? ?????? #???# ## ### | | ??????????????? ?????? ##??## #? | | ???????????????? ####??# #???### ### #? | | ???????????????? #"???# #?????# #?## #? | | ???????????????? # ???# ##????# #??## ## | | ????????????????# ????# ;#?#### ###### | | ????????????????# ????# #?## ###### | | ????????????????# ?????# ### #???# | | ????????????????# ?????# ## #??## | | ????????????????# ####### g g ## #### | | ????????????????# =@% g i #### ### # | | ???????????????# ###### g ##?##### # | | ???????????????# #???# #????## | | ???????????????## #??# ####???## ## | | ????????????????## ??# ##???#### # #### | | ?????????????????# ??# ##???## #??# | | ?????????????????# ?## ######????# ######??? | | ?????????????????## #??####?????????# ##???????? | | ??????????????????####???????????????####????????? | | ?????????????????????????????????????????????????? | | ?????????????????????????????????????????????????? | | ?????????????????????????????????????????????????? | | ?????????????????????????????????????????????????? | | ?????????????????????????????????????????????????? | | ?????????????????????????????????????????????????? | | ?????????????????????????????????????????????????? | | ?????????????????????????????????????????????????? | | ?????????????????????????????????????????????????? | | ?????????????????????????????????????????????????? | | ?????????????????????????????????????????????????? | | ?????????????????????????????????????????????????? | | ?????????????????????????????????????????????????? | | ?????????????????????????????????????????????????? | | ?????????????????????????????????????????????????? | | | +----------------------------------------------------+ Best States ------------- Heat Dissipation 34 Energy Generation 17 Energy Capacity 1600 Matter Stores 300 Matter Capacity 300 Sight Range 16 Terrain Scan Density 10 Armor Coverage 225 Resistance: KI 30 Propulsion Shielding 33 Utility Shielding 33 Evasion (%) 55 Targeting Accuracy 5 Recoil Reduction 2 Offensive Hacking 30 Defensive Hacking 10 Authchip Count 1 Item Schematics ----------------- Hacking Suite | -7/Factory | Scanalyzed Robot Schematics ------------------ None Fabricated ------------ K-01 Serf | x4 | -7/Factory | Preloaded Hacking Suite | x1 | -7/Factory Repaired ---------- Nothing Alien Tech Used ----------------- None Achievements -------------- None Challenges ------------ None Game ------ Seed ThiefAlertSpecial Manual? 0 Play Time 00:51:35 Cumulative 36.9 hours Start 2025.06.04 @ 17:07:50 End 2025.06.04 @ 17:59:13 Sessions 1 Manual Loads 0 Difficulty Rogue Special Mode None Game No. 35 Rogue 35 Adventurer 0 Explorer 0 Win Type - Total 0 Types 0/0/0/0/0/0/0/0/0/0 Lore% 24 Gallery% 32 Achievement% 37 Wizard Run 0 Options --------- Layout 1 ASCII 0 Keyboard 0 Movement Mouse Keybinds 0 Fullscreen 1 Font 24/Smallcaps Map View 50x35 Zoom Use 0% Tactical HUD 0 Map Filters NONE Filters NONE Steam 1 RUN: efc0c4e4-7ef3-42bd-bf7e-ee433fd98d48